bitfinex/quotes_BTCUSD_20220205
["timestamp","ask_amount","ask_price","bid_price","bid_amount"]
[1644081695141,0.05,41175.0,41173.0,0.25299559]
[1644081695341,0.05,41175.0,41173.0,0.30299559]
[1644081695707,0.05027099,41176.0,41173.0,0.30299559]
[1644081695903,0.05,41176.0,41173.0,0.30299559]
[1644081696104,0.05,41176.0,41173.0,0.35299559]
[1644081696704,0.05,41176.0,41173.0,0.1]
[1644081697107,0.05,41176.0,41168.0,0.19554914]
[1644081697306,0.05027099,41176.0,41173.0,0.05]
[1644081697510,0.00027099,41178.0,41174.0,0.3]
[1644081697717,0.00027099,41176.0,41175.0,0.436609]
[1644081697909,0.00027099,41180.0,41179.0,0.2]
[1644081698108,0.00027099,41183.0,41179.0,0.537909]
[1644081698310,0.00065689,41184.0,41180.0,0.337909]
[1644081698507,0.00027099,41183.0,41179.0,0.4]
[1644081698707,0.46393073,41184.0,41179.0,0.4]
[1644081698708,0.05,41182.0,41180.0,0.337909]
[1644081699307,0.00027099,41183.0,41180.0,0.337909]
[1644081699545,0.05,41182.0,41180.0,0.337909]
[1644081699744,0.05,41182.0,41180.0,0.2825913]
[1644081699946,0.05,41182.0,41175.0,0.27969487]
[1644081699947,0.05,41182.0,41176.0,0.30340152]
[1644081700145,0.05027099,41182.0,41177.0,0.337909]
[1644081700345,0.05,41182.0,41177.0,0.357909]
[1644081700548,0.05,41182.0,41179.0,0.337909]
[1644081700949,0.00027099,41183.0,41179.0,0.337909]
[1644081700950,0.00063254,41184.0,41179.0,0.437909]
[1644081701149,0.0881148,41181.0,41179.0,0.337909]
[1644081701449,0.05,41182.0,41179.0,0.337909]
[1644081701647,0.00027099,41183.0,41179.0,0.337909]
[1644081701846,0.00063254,41184.0,41179.0,0.337909]
[1644081702045,0.05,41182.0,41180.0,0.337768]
[1644081702247,0.05,41182.0,41180.0,0.66056637]
[1644081702446,0.05,41182.0,41181.0,0.53892378]
[1644081702649,0.00027099,41183.0,41181.0,0.58892378]
[1644081702848,0.00090517,41184.0,41181.0,0.25115578]
[1644081703048,0.00063418,41184.0,41181.0,0.05]
[1644081703296,0.05027099,41185.0,41179.0,0.05]
[1644081703499,0.05090517,41185.0,41179.0,0.05]
[1644081703694,0.00090517,41185.0,41175.0,0.46359849]
[1644081703898,0.00027099,41184.0,41175.0,0.60554421]
[1644081704098,0.05090517,41185.0,41179.0,0.23122325]
[1644081704297,0.00027099,41184.0,41179.0,0.33122325]
[1644081704496,0.00027099,41185.0,41179.0,0.33122325]
[1644081704698,0.38722032,41181.0,41179.0,0.43122325]
[1644081704897,0.38722032,41181.0,41179.0,0.2]
[1644081705097,0.00027099,41183.0,41179.0,0.2]
[1644081705297,0.00090518,41184.0,41179.0,0.2]
[1644081705497,0.00027099,41183.0,41179.0,0.29521737]
[1644081705697,0.00027099,41185.0,41180.0,0.337768]
[1644081705900,0.00027099,41183.0,41179.0,0.1]
[1644081706104,0.00027099,41185.0,41180.0,0.337768]
[1644081706299,0.06099599,41186.0,41180.0,0.2]
[1644081706497,0.00027099,41185.0,41182.0,0.23796403]
[1644081706698,0.06099599,41186.0,41182.0,0.05]
[1644081706949,0.07857981,41183.0,41182.0,0.05]
[1644081707140,0.00027099,41185.0,41182.0,0.05]
[1644081707340,0.06099599,41186.0,41181.0,0.05]
[1644081707540,0.00027099,41185.0,41180.0,0.05]
[1644081707741,0.06099599,41186.0,41181.0,0.27121174]
[1644081707941,0.00027099,41185.0,41181.0,0.27121174]
[1644081708140,0.06099599,41186.0,41181.0,0.37121174]
[1644081708340,0.00027099,41185.0,41181.0,0.37121174]
[1644081708541,0.06099599,41186.0,41181.0,0.37121174]
[1644081708746,0.08941688,41185.0,41181.0,0.37121174]
[1644081709042,0.08914589,41185.0,41181.0,0.37121174]
[1644081709241,0.08941688,41185.0,41181.0,0.37121174]
[1644081709441,0.09009088,41185.0,41181.0,0.37121174]
[1644081710044,0.00094499,41185.0,41181.0,0.37121174]
[1644081710345,0.00094499,41185.0,41182.0,0.3]
[1644081710545,0.00027099,41186.0,41183.0,0.337768]
[1644081710802,0.15589496,41191.0,41183.0,0.337768]
[1644081710803,0.00063096,41185.0,41183.0,0.63378406]
[1644081711001,0.00063096,41185.0,41184.0,0.337768]
[1644081711508,0.00063096,41185.0,41184.0,0.437768]
[1644081711703,0.00027099,41189.0,41188.0,0.40027368]
[1644081711903,0.00027099,41189.0,41188.0,0.2]
[1644081711904,0.05,41189.0,41188.0,0.2]
[1644081712104,0.05,41189.0,41188.0,0.25]
[1644081712702,0.28727998,41191.0,41188.0,0.25]
[1644081712902,0.28700907,41191.0,41188.0,0.25]
[1644081713103,0.28763998,41191.0,41188.0,0.25]
[1644081713503,0.34835898,41191.0,41188.0,0.25]
[1644081714110,0.34772807,41191.0,41188.0,0.25]
[1644081714470,0.34772807,41191.0,41172.0,0.5414]
[1644081714471,0.060728,41186.0,41175.0,0.6595]
[1644081714666,0.060728,41186.0,41176.0,0.1775]
[1644081714667,0.08937028,41178.0,41176.0,0.1775]
[1644081714868,0.05,41179.0,41177.0,0.337768]
[1644081715066,0.05,41179.0,41177.0,0.2001804]
[1644081715266,0.05,41179.0,41169.0,0.56884975]
[1644081715464,0.05,41179.0,41170.0,0.337768]
[1644081716268,0.06728119,41178.0,41172.0,0.05]
[1644081716465,0.05,41175.0,41172.0,0.05]
[1644081716672,0.05,41175.0,41171.0,0.1]
[1644081716865,0.17801719,41178.0,41171.0,0.15]
[1644081717066,0.33842298,41175.0,41171.0,0.15]
[1644081717666,0.38842298,41175.0,41171.0,0.05]
[1644081718193,0.38842298,41175.0,41170.0,0.05]
[1644081718394,0.060742,41174.0,41169.0,0.41289135]
[1644081719197,0.060742,41174.0,41169.0,0.41354826]
[1644081720195,0.060742,41174.0,41169.0,0.41289135]
[1644081720396,0.060742,41174.0,41169.0,0.41354826]
[1644081720596,0.05,41173.0,41169.0,0.20065691]
[1644081720796,0.060742,41174.0,41169.0,0.10065691]
[1644081720997,0.3,41182.0,41169.0,0.10065691]
[1644081720998,0.05,41182.0,41169.0,0.10065691]
[1644081721197,0.05,41182.0,41171.0,0.0936634]
[1644081721398,0.05,41182.0,41171.0,0.05]
[1644081721597,0.05,41182.0,41172.0,0.0506317]
[1644081721802,0.37836391,41179.0,41174.0,0.20996682]
[1644081722042,0.12037036,41182.0,41179.0,0.2]
[1644081722242,0.00090243,41184.0,41179.0,0.25]
[1644081722444,0.05,41182.0,41179.0,0.05]
[1644081722843,0.05,41182.0,41176.0,0.337768]
[1644081723243,0.05,41182.0,41176.0,0.05]
[1644081723643,0.05,41182.0,41175.0,0.09489534]
[1644081723843,0.05,41182.0,41175.0,0.14489534]
[1644081724048,0.05,41182.0,41176.0,0.10437519]
[1644081724245,0.05,41182.0,41177.0,0.387768]
[1644081724548,0.00085841,41184.0,41181.0,0.26564624]
[1644081724744,0.0005875,41184.0,41181.0,0.36564624]
[1644081724943,0.00027091,41185.0,41181.0,0.36564624]
[1644081725144,0.00027091,41185.0,41183.0,0.0994438]
[1644081725145,0.00058751,41185.0,41183.0,0.0994438]
[1644081725343,0.00085842,41185.0,41183.0,0.1994438]
[1644081725544,0.00058751,41185.0,41183.0,0.05]
[1644081725795,0.00058751,41185.0,41184.0,0.387768]
[1644081726195,0.05,41186.0,41184.0,0.387768]
[1644081726396,0.05,41186.0,41185.0,0.337768]
[1644081726596,0.05,41186.0,41184.0,0.05]
[1644081726995,0.05,41186.0,41182.0,0.05]
[1644081727202,0.11854927,41186.0,41182.0,0.05]
[1644081727397,0.33603334,41185.0,41182.0,0.05]
[1644081727599,0.33603334,41185.0,41182.0,0.09107774]
[1644081727796,0.33603334,41185.0,41181.0,0.1]
[1644081727998,0.33603334,41185.0,41174.0,0.00061486]
[1644081728197,0.33603334,41185.0,41176.0,0.09591145]
[1644081728499,0.33603334,41185.0,41172.0,0.2743]
[1644081728500,0.05,41182.0,41172.0,0.2743]
[1644081728705,0.39694455,41176.0,41173.0,0.337768]
[1644081729299,0.39694455,41176.0,41174.0,0.337768]
[1644081729542,0.44694455,41176.0,41168.0,0.337768]
[1644081729745,0.44694455,41176.0,41167.0,0.26174887]
[1644081729943,0.39694455,41176.0,41167.0,0.26174887]
[1644081730142,0.44694455,41176.0,41167.0,0.26174887]
[1644081730844,0.121485,41179.0,41167.0,0.26174887]
[1644081731043,0.05,41181.0,41168.0,0.43419721]
[1644081731245,0.05,41181.0,41167.0,0.40564887]
[1644081731246,0.05,41181.0,41179.0,0.2]
[1644081731444,0.04986835,41180.0,41179.0,0.2]
[1644081731645,0.04986835,41180.0,41170.0,0.16313165]
[1644081731844,0.04986835,41180.0,41176.0,0.23353917]
[1644081731845,0.36262476,41180.0,41176.0,0.23353917]
[1644081732043,0.36262476,41180.0,41172.0,0.05]
[1644081732248,0.36262476,41180.0,41171.0,0.05]
[1644081732444,0.36262476,41180.0,41174.0,0.00063429]
[1644081732645,0.36262476,41180.0,41174.0,0.00076594]
[1644081732646,0.04986835,41180.0,41174.0,0.00076594]
[1644081732844,0.00063414,41184.0,41179.0,0.2]
[1644081733297,0.04986835,41186.0,41179.0,0.3]
[1644081733797,0.00063416,41184.0,41179.0,0.2672447]
[1644081734198,0.00063416,41184.0,41179.0,0.3172447]
[1644081734397,0.00063416,41184.0,41179.0,0.1]
[1644081734597,0.11059335,41186.0,41179.0,0.1]
[1644081734802,0.00063416,41184.0,41179.0,0.05]
[1644081734999,0.00063416,41184.0,41176.0,0.05]
[1644081735399,0.00063416,41184.0,41181.0,0.21066046]
[1644081735598,0.00063416,41184.0,41178.0,0.05013165]
[1644081735798,0.11059335,41186.0,41178.0,0.05013165]
[1644081736201,0.00063416,41185.0,41178.0,0.05]
[1644081736804,0.00027091,41188.0,41184.0,0.00013165]
[1644081737051,0.05,41197.0,41189.0,0.1439]
[1644081737052,0.15550496,41191.0,41189.0,0.1439]
[1644081737250,0.15550496,41191.0,41188.0,0.95]
[1644081737251,0.15550496,41191.0,41190.0,1.25021874]
[1644081737452,0.15550496,41191.0,41190.0,0.85729379]
[1644081737748,0.15550496,41191.0,41190.0,1.18869606]
[1644081737947,0.15550496,41191.0,41190.0,0.71326214]
[1644081738147,0.15550496,41191.0,41190.0,0.81339379]
[1644081738347,0.15550496,41191.0,41190.0,0.81326214]
[1644081738546,0.15550496,41191.0,41190.0,0.81339379]
[1644081738748,0.15550496,41191.0,41190.0,0.81326214]
[1644081739047,0.15550496,41191.0,41190.0,0.537768]
[1644081739247,0.15550496,41191.0,41190.0,0.8205641]
[1644081739647,0.15550496,41191.0,41190.0,0.53789965]
[1644081739848,0.15550496,41191.0,41190.0,0.337768]
[1644081740248,0.14650496,41191.0,41190.0,0.337768]
[1644081740694,0.19637331,41191.0,41188.0,0.2]
[1644081740896,0.08305231,41189.0,41188.0,0.2]
[1644081742296,0.40069793,41189.0,41188.0,0.25]
[1644081742497,0.08305231,41189.0,41188.0,0.3]
[1644081742997,0.61370938,41191.0,41188.0,0.3]
[1644081742998,0.19664488,41191.0,41188.0,0.3]
[1644081743197,0.19637331,41191.0,41188.0,0.3]
[1644081743397,0.19704829,41191.0,41188.0,0.3]
[1644081743797,0.25776329,41191.0,41188.0,0.3]
[1644081744196,0.25776329,41191.0,41188.0,0.30013165]
[1644081744197,0.19637331,41191.0,41188.0,0.30013165]
[1644081744448,0.19637331,41191.0,41188.0,0.4]
[1644081744847,0.19637331,41191.0,41189.0,0.48493435]
[1644081745047,0.19637331,41191.0,41190.0,0.61051625]
[1644081745250,0.19637331,41191.0,41190.0,0.387768]
[1644081745449,0.14650496,41191.0,41190.0,0.76217362]
[1644081745646,0.14650496,41191.0,41190.0,0.487768]
[1644081745846,0.14650496,41191.0,41190.0,0.76302796]
[1644081746049,0.14650496,41191.0,41190.0,0.78789965]
[1644081746247,0.14650496,41191.0,41190.0,0.48789965]
[1644081748703,0.14650496,41191.0,41190.0,0.63179965]
[1644081748903,0.04605902,41197.0,41192.0,0.75]
[1644081749103,0.02,41199.0,41195.0,0.337768]
[1644081749304,0.02,41199.0,41197.0,0.337642]
[1644081749503,0.02,41199.0,41197.0,0.337262]
[1644081749704,0.02,41199.0,41197.0,0.487262]
[1644081749905,0.02,41199.0,41198.0,0.337642]
[1644081750104,0.01,41199.0,41198.0,0.386342]
[1644081750304,0.01,41199.0,41198.0,0.486342]
[1644081750810,0.01,41199.0,41198.0,0.481342]
[1644081751704,0.01,41199.0,41198.0,0.7505489]
[1644081751951,0.01,41199.0,41198.0,0.381342]
[1644081752147,0.01,41199.0,41198.0,0.332642]
[1644081752148,0.06,41199.0,41198.0,0.332642]
[1644081752348,0.06,41199.0,41189.0,0.1439]
[1644081752549,0.0752201,41196.0,41189.0,0.386324]
[1644081752749,0.0002672,41197.0,41189.0,0.637624]
[1644081752946,0.0002672,41197.0,41194.0,0.337624]
[1644081752947,0.00028806,41195.0,41194.0,0.337624]
[1644081753151,0.00028806,41195.0,41194.0,0.33751198]
[1644081753946,0.0002672,41196.0,41194.0,0.33751198]
[1644081754547,0.0002672,41196.0,41190.0,0.337651]
[1644081754747,0.0002672,41195.0,41190.0,0.637651]
[1644081754951,0.0002672,41195.0,41190.0,0.981551]
[1644081755148,0.00053938,41195.0,41192.0,0.481551]
[1644081755348,0.00055526,41195.0,41192.0,0.681551]
[1644081755549,0.00055526,41195.0,41193.0,0.337651]
[1644081755801,0.00055526,41195.0,41193.0,0.437651]
[1644081756397,0.0002672,41195.0,41193.0,0.437651]
[1644081756601,0.0002672,41195.0,41194.0,0.28794964]
[1644081756800,0.0002672,41195.0,41194.0,0.33794964]
[1644081757302,0.0002672,41195.0,41194.0,0.43794964]
[1644081757700,0.00620932,41199.0,41197.0,0.337651]
[1644081757899,0.00620932,41199.0,41198.0,0.27580574]
[1644081758099,0.00620932,41199.0,41198.0,0.337651]
[1644081758304,0.00620932,41199.0,41198.0,0.487651]
[1644081758601,0.00620932,41199.0,41198.0,0.76987488]
[1644081758801,0.00620932,41199.0,41198.0,0.487651]
[1644081759000,0.00620932,41199.0,41198.0,1.76248985]
[1644081759445,0.00620932,41199.0,41198.0,1.487651]
[1644081760042,0.00620932,41199.0,41198.0,1.631551]
[1644081760640,0.00620932,41199.0,41198.0,1.680251]
[1644081761440,0.00620932,41199.0,41198.0,2.680251]
[1644081763696,0.0005344,41200.0,41199.0,1.13769068]
[1644081763895,0.00078231,41201.0,41199.0,1.96653252]
[1644081764097,0.00078231,41201.0,41200.0,0.61415542]
[1644081764297,0.00078231,41201.0,41200.0,0.81285542]
[1644081764900,0.00199144,41208.0,41200.0,0.81285542]
[1644081764901,0.00123928,41203.0,41200.0,0.81285542]
[1644081765098,0.00148719,41203.0,41201.0,0.337651]
[1644081765297,0.00148719,41203.0,41201.0,0.487651]
[1644081765497,0.00148719,41203.0,41201.0,0.76254814]
[1644081765898,0.00095279,41203.0,41201.0,0.76254814]
[1644081766102,0.00070488,41203.0,41202.0,0.337651]
[1644081766399,0.00070488,41203.0,41202.0,0.487651]
[1644081766600,0.00070488,41203.0,41202.0,0.7902611]
[1644081767246,0.00070488,41203.0,41202.0,0.9341611]
[1644081767444,0.00070488,41203.0,41202.0,0.9828611]
[1644081769052,0.00027145,41205.0,41202.0,0.9828611]
[1644081769248,0.001,41217.0,41205.0,0.204566]
[1644081769552,0.001,41217.0,41208.0,0.8939]
[1644081769747,0.001,41217.0,41210.0,0.1439]
[1644081769947,0.001,41217.0,41212.0,0.1439]
[1644081770147,0.001,41217.0,41213.0,0.530251]
[1644081770347,0.0722301,41219.0,41214.0,0.1926]
[1644081770348,0.0222301,41219.0,41214.0,0.1926]
[1644081770551,0.0222301,41219.0,41216.0,0.1439]
[1644081770804,0.0222301,41219.0,41217.0,0.59442805]
[1644081771004,0.0222301,41219.0,41218.0,0.1939]
[1644081771208,0.0222301,41219.0,41218.0,0.0987]
[1644081771406,0.0222301,41219.0,41218.0,0.436351]
[1644081771603,0.0222301,41219.0,41218.0,0.0987]
[1644081771804,0.0222301,41219.0,41218.0,0.436351]
[1644081772003,0.0222301,41219.0,41218.0,0.1987]
[1644081772205,0.0222301,41219.0,41218.0,0.536351]
[1644081772405,0.0222301,41219.0,41218.0,0.680251]
[1644081772804,0.0222301,41219.0,41218.0,0.536351]
[1644081773205,0.0222301,41219.0,41218.0,0.81027044]
[1644081773405,0.0172301,41219.0,41218.0,0.937651]
[1644081773809,0.00027335,41223.0,41219.0,0.75]
[1644081774007,0.052,41224.0,41223.0,0.14347216]
[1644081774008,0.00085568,41224.0,41223.0,0.14347216]
[1644081774205,0.00085568,41224.0,41223.0,0.88710906]
[1644081774453,0.002,41232.0,41224.0,0.99499085]
[1644081774649,0.01098218,41229.0,41226.0,0.75]
[1644081774852,0.0088484,41233.0,41228.0,0.05]
[1644081775050,0.0088484,41233.0,41229.0,0.386351]
[1644081775249,0.0088484,41233.0,41232.0,0.05]
[1644081775451,0.002,41237.0,41232.0,0.0987]
[1644081775649,0.002,41237.0,41232.0,0.71312653]
[1644081775850,0.04339775,41246.0,41233.0,0.75]
[1644081776048,0.04339775,41246.0,41234.0,0.386351]
[1644081776049,0.0006346,41246.0,41234.0,0.386351]
[1644081776250,0.0006346,41246.0,41234.0,0.736351]
[1644081776456,0.0006346,41246.0,41243.0,0.05]
[1644081776648,0.0006346,41246.0,41244.0,0.337651]
[1644081776849,0.0067034,41249.0,41245.0,0.0487]
[1644081777048,0.0067034,41249.0,41246.0,0.337651]
[1644081777250,0.0067034,41249.0,41246.0,0.486351]
[1644081777552,0.0067034,41249.0,41246.0,0.0487]
[1644081777553,0.0017034,41249.0,41246.0,0.0487]
[1644081777757,0.3017034,41249.0,41245.0,0.19449488]
[1644081777949,0.3017034,41249.0,41230.0,0.19449488]
[1644081777950,0.06853944,41239.0,41230.0,0.19449488]
[1644081778201,0.06853944,41239.0,41229.0,0.19449488]
[1644081778202,0.27658965,41234.0,41229.0,0.19449488]
[1644081778404,0.06853944,41239.0,41223.0,0.19449488]
[1644081778405,0.37481507,41233.0,41223.0,0.19449488]
[1644081778604,0.060652,41239.0,41221.0,0.19449488]
[1644081778801,0.060652,41239.0,41222.0,0.09552226]
[1644081779006,0.3,41242.0,41228.0,0.05]
[1644081779201,1.41411829,41248.0,41236.0,0.05]
[1644081779202,0.181974,41248.0,41236.0,0.05]
[1644081779406,0.0017034,41249.0,41242.0,0.22444747]
[1644081779604,0.0017034,41249.0,41243.0,0.386351]
[1644081779802,0.0017034,41249.0,41244.0,0.15007775]
[1644081780002,0.0017034,41249.0,41245.0,0.48207994]
[1644081780203,0.0017034,41249.0,41246.0,0.09707287]
[1644081780403,0.0017034,41249.0,41247.0,0.386351]
[1644081780604,0.0017034,41249.0,41248.0,0.40824595]
[1644081780802,0.0017034,41249.0,41248.0,0.58418088]
[1644081781003,0.0017034,41249.0,41248.0,0.536351]
[1644081781204,0.0017034,41249.0,41248.0,0.64033961]
[1644081781508,0.0017034,41249.0,41248.0,0.536351]
[1644081781701,0.0017034,41249.0,41248.0,0.81299459]
[1644081781955,0.0017034,41249.0,41248.0,0.86322419]
[1644081782150,0.0017034,41249.0,41248.0,1.00771907]
[1644081782451,0.001,41255.0,41254.0,0.63419245]
[1644081782649,0.00143288,41255.0,41254.0,0.73419245]
[1644081782851,0.01235558,41259.0,41255.0,0.75]
[1644081783049,0.01322134,41259.0,41256.0,0.386351]
[1644081783248,0.01322134,41259.0,41256.0,0.436351]
[1644081783450,0.01322134,41259.0,41258.0,0.337651]
[1644081783451,0.00890347,41259.0,41258.0,0.337651]
[1644081783654,0.0027281,41265.0,41259.0,0.75]
[1644081783851,0.0198277,41269.0,41264.0,0.05]
[1644081784054,0.0198277,41269.0,41268.0,0.337651]
[1644081784249,0.0198277,41269.0,41268.0,0.436351]
[1644081784451,0.00836818,41273.0,41269.0,0.75]
[1644081784655,0.00836818,41273.0,41272.0,0.05]
[1644081784850,0.00336818,41273.0,41272.0,0.436351]
[1644081785049,0.00336818,41273.0,41272.0,0.43308086]
[1644081785251,0.00336818,41273.0,41272.0,0.58308086]
[1644081785450,0.001,41278.0,41273.0,0.75]
[1644081785700,0.05,41285.0,41276.0,0.05]
[1644081785900,0.5501,41294.0,41277.0,0.38574]
[1644081786100,0.5501,41294.0,41278.0,0.05]
[1644081786299,0.5501,41294.0,41279.0,0.31258]
[1644081786501,0.011,41289.0,41283.0,0.29599632]
[1644081786704,0.011,41289.0,41288.0,0.20691027]
[1644081786900,0.011,41289.0,41288.0,0.0446]
[1644081787299,0.011,41289.0,41288.0,0.381545]
[1644081787702,0.011,41289.0,41288.0,0.431545]
[1644081787903,0.011,41289.0,41288.0,0.65321913]
[1644081788304,1.94774572,41300.0,41289.0,0.75]
[1644081788511,0.00131286,41315.0,41289.0,0.75]
[1644081788512,0.00083492,41316.0,41299.0,0.05]
[1644081788706,0.316206,41334.0,41299.0,0.05]
[1644081788707,0.074,41334.0,41317.0,0.03711202]
[1644081788907,0.0005425,41340.0,41337.0,0.21359091]
[1644081789103,0.0005425,41340.0,41338.0,0.331945]
[1644081789104,0.01572368,41339.0,41338.0,0.331945]
[1644081789319,0.00099834,41340.0,41330.0,0.33658]
[1644081789320,0.00608532,41338.0,41330.0,0.33658]
[1644081789563,0.00608532,41338.0,41326.0,0.2463]
[1644081789564,0.00608532,41338.0,41332.0,0.33658]
[1644081789760,0.00606813,41337.0,41332.0,0.34271763]
[1644081790063,0.27308253,41336.0,41332.0,0.34171763]
[1644081790365,0.27308253,41336.0,41320.0,0.460487]
[1644081790366,0.30603375,41335.0,41320.0,0.460487]
[1644081790560,0.30630884,41335.0,41321.0,0.5]
[1644081790764,0.30630884,41335.0,41320.0,0.0446]
[1644081790765,0.2,41331.0,41316.0,0.03743028]
[1644081791062,0.00601656,41334.0,41316.0,0.03743028]
[1644081791063,0.424697,41330.0,41316.0,0.03743028]
[1644081791259,0.00674429,41330.0,41316.0,0.08203028]
[1644081791461,0.0782771,41323.0,41316.0,0.08203028]
[1644081791659,0.0782771,41323.0,41318.0,0.336612]
[1644081791867,0.0532771,41323.0,41316.0,0.03743028]
[1644081792064,0.22656368,41318.0,41316.0,0.03743028]
[1644081792362,0.0532771,41323.0,41300.0,0.1]
[1644081792363,0.124697,41320.0,41300.0,0.1]
[1644081792559,0.9467229,41319.0,41300.0,0.1]
[1644081792759,0.06457084,41313.0,41300.0,0.1]
[1644081792959,0.18926784,41313.0,41296.0,0.0446]
[1644081793206,0.18926784,41313.0,41312.0,0.04578186]
[1644081793604,0.124697,41313.0,41312.0,0.04578186]
[1644081793806,0.32570047,41317.0,41312.0,0.04578186]
[1644081794005,0.124697,41316.0,41312.0,0.04578186]
[1644081794206,0.0002795,41315.0,41312.0,0.04578186]
[1644081794604,0.0002795,41315.0,41302.0,0.56843388]
[1644081794605,0.07929611,41314.0,41302.0,0.56843388]
[1644081794804,0.0002795,41315.0,41302.0,0.26843388]
[1644081794805,0.37475434,41308.0,41302.0,0.26843388]
[1644081795005,0.0002795,41315.0,41301.0,0.02]
[1644081795204,0.1,41317.0,41301.0,0.02]
[1644081795404,0.0002795,41307.0,41301.0,0.02]
[1644081795608,0.0002795,41307.0,41302.0,0.336612]
[1644081795805,0.06676327,41307.0,41302.0,0.336612]
[1644081796007,0.30913616,41310.0,41302.0,0.75]
[1644081796206,0.00111783,41313.0,41302.0,0.75]
[1644081796409,0.1693,41325.0,41305.0,0.336612]
[1644081796606,0.05,41330.0,41306.0,0.3]
[1644081796805,0.15,41330.0,41303.0,0.6]
[1644081797055,0.088559,41309.0,41303.0,0.3]
[1644081797253,0.088559,41309.0,41303.0,0.19414361]
[1644081797451,0.0446,41308.0,41301.0,0.02]
[1644081797752,0.124697,41307.0,41301.0,0.02]
[1644081797951,0.0446,41306.0,41301.0,0.02]
[1644081798151,0.3057745,41304.0,41301.0,0.02]
[1644081798354,0.02021112,41313.0,41301.0,0.02]
[1644081798555,0.02021112,41313.0,41302.0,0.336612]
[1644081798751,0.02021112,41313.0,41301.0,0.42368321]
[1644081798951,0.09955917,41313.0,41301.0,0.315]
[1644081799151,0.09955917,41313.0,41302.0,0.336612]
[1644081799352,0.02021112,41313.0,41305.0,0.05]
[1644081799557,0.02021112,41313.0,41308.0,0.23238]
[1644081799753,0.02021112,41313.0,41310.0,0.32539]
[1644081799754,0.96693402,41313.0,41310.0,0.32539]
[1644081799952,0.336782,41312.0,41311.0,0.24206]
[1644081800152,0.0446,41312.0,41311.0,0.24206]
[1644081800354,0.08401829,41304.0,41301.0,1.015]
[1644081800706,0.08401829,41304.0,41302.0,0.33514]
[1644081800707,0.36249817,41303.0,41302.0,0.33514]
[1644081800902,0.36249817,41303.0,41302.0,0.09303]
[1644081801101,0.36249817,41303.0,41301.0,1.015]
[1644081801504,0.75,41301.0,41288.0,0.09734468]
[1644081801707,0.75,41301.0,41281.0,0.07]
[1644081801708,0.662042,41300.0,41281.0,0.02]
[1644081801904,0.642702,41300.0,41281.0,0.02]
[1644081802110,0.020269,41292.0,41281.0,0.02]
[1644081802303,0.7693357,41292.0,41281.0,0.07]
[1644081802503,0.7693357,41292.0,41283.0,0.25]
[1644081802702,0.4325727,41292.0,41283.0,0.25]
[1644081802903,0.7693357,41292.0,41283.0,0.25]
[1644081803102,0.4325727,41292.0,41283.0,0.25]
[1644081803503,0.4325727,41292.0,41284.0,0.26790518]
[1644081803704,0.7693357,41292.0,41281.0,0.07]
[1644081803904,0.7693357,41292.0,41281.0,0.02]
[1644081803905,0.07454521,41282.0,41281.0,0.02]
[1644081804552,0.00027576,41284.0,41281.0,0.02]
[1644081804759,0.2901578,41283.0,41281.0,0.02]
[1644081805555,0.00027576,41284.0,41281.0,0.02]
[1644081805754,0.57481572,41304.0,41281.0,0.02]
[1644081805755,0.04487576,41290.0,41282.0,0.636901]
[1644081805954,0.00027576,41293.0,41282.0,0.636901]
[1644081806255,0.0446,41292.0,41285.0,0.336901]
[1644081806457,0.0446,41291.0,41284.0,0.00068294]
[1644081806655,0.0446,41291.0,41277.0,0.3]
[1644081806656,0.25,41286.0,41277.0,0.29568294]
[1644081806855,0.32909004,41283.0,41277.0,0.39542854]
[1644081807053,0.32909004,41283.0,41278.0,0.3366466]
[1644081807259,0.0446,41286.0,41281.0,0.20979109]
[1644081807455,0.00027652,41285.0,41282.0,0.336901]
[1644081807654,0.0446,41291.0,41282.0,0.336901]
[1644081807853,0.0446,41291.0,41281.0,0.20979109]
[1644081807854,0.0446,41291.0,41283.0,0.336952]
[1644081808055,0.0446,41291.0,41286.0,0.25]
[1644081808301,0.06426486,41290.0,41287.0,0.336952]
[1644081808501,0.31241681,41291.0,41284.0,0.55]
[1644081808705,0.31241681,41291.0,41286.0,0.25]
[1644081808706,0.01977406,41290.0,41286.0,0.25]
[1644081808901,0.01949754,41290.0,41286.0,0.25]
[1644081809102,0.31685622,41290.0,41281.0,0.55]
[1644081809402,0.07039654,41280.0,41277.0,0.3]
[1644081809602,0.060588,41288.0,41277.0,0.34542854]
[1644081809913,0.060588,41288.0,41272.0,1.0]
[1644081809914,0.00027652,41288.0,41287.0,0.34542854]
[1644081810103,0.00027652,41289.0,41287.0,0.68238054]
[1644081810402,0.01977406,41290.0,41288.0,0.336952]
[1644081810603,0.01949754,41290.0,41289.0,0.59109777]
[1644081810803,0.01949754,41290.0,41289.0,0.336952]
[1644081811203,0.01949754,41290.0,41288.0,0.336952]
[1644081811604,0.0890877,41289.0,41288.0,0.336952]
[1644081811949,0.01949754,41290.0,41288.0,0.336952]
[1644081812149,0.01949754,41290.0,41288.0,0.6002176]
[1644081812349,0.00027652,41291.0,41288.0,0.6002176]
[1644081812555,0.00027652,41294.0,41292.0,0.3]
[1644081812750,0.39361595,41294.0,41293.0,0.25687229]
[1644081812950,0.39361595,41294.0,41292.0,0.3]
[1644081813352,0.07316042,41293.0,41292.0,0.3]
[1644081813552,0.07316042,41293.0,41292.0,0.55]
[1644081813950,0.75,41292.0,41290.0,0.09542854]
[1644081814953,0.51169144,41291.0,41280.0,0.09542854]
[1644081815162,0.51169144,41291.0,41273.0,0.074]
[1644081815163,0.0446,41290.0,41278.0,0.05]
[1644081815354,0.07258099,41282.0,41281.0,0.09542854]
[1644081815805,0.39353898,41284.0,41281.0,0.09542854]
[1644081816405,0.39353898,41284.0,41282.0,0.25981908]
[1644081816606,0.39353898,41284.0,41281.0,0.09542854]
[1644081816805,0.4774862,41284.0,41281.0,0.09542854]
[1644081817406,0.39353898,41284.0,41281.0,0.09542854]
[1644081818407,0.38853898,41284.0,41283.0,0.05]